[Event "Karel Janecek Open 2024"]
[Site "Prague"]
[Date "2024.03.01"]
[Round "3.6"]
[White "Svanda, Ondrej"]
[Black "Heberla, Bartlomiej"]
[Result "1/2-1/2"]
[ECO "C78"]
[WhiteElo "2369"]
[BlackElo "2546"]
[Annotator "TA"]
[PlyCount "64"]
[EventDate "2024.02.22"]
[EventType "swiss"]
[EventCountry "CZE"]
[SourceTitle "playchess.com"]
[Source "ChessBase"]
[SourceQuality "1"]
[TimeControl "40/5400+30:1800+30"]

{[%evp 16,64,17,21,26,23,22,21,28,25,31,-10,0,0,0,-48,0,0,0,0,0,-12,0,0,11,6,17,4,18,0,36,18,76,24,16,12,58,0,6,0,0,0,0,0,0,0,42,0,0,0,31]} 1. e4 {[%emt 0:00:01]} e5 {[%emt 0:02:45]} 2. Nf3 {[%emt 0:00:05]} Nc6 {[%emt 0:00:04]} 3. Bb5 {[%emt 0:00:03]} a6 {[%emt 0:00:05]} 4. Ba4 {[%emt 0:00:03]} Nf6 {[%emt 0:00:19]} 5. O-O {[%emt 0:00:18]} Bc5 {[%emt 0:00:03]} 6. c3 {[%emt 0:00:55]} b5 {[%emt 0:00:08]} 7. Bb3 {[%emt 0:00:07]} d6 {[%emt 0:00:09]} 8. a4 {[%emt 0:02:43]} Bg4 {[%emt 0:07:58]} 9. h3 {[%emt 0:09:35]} Bxf3 {[%emt 0:00:24]} 10. Qxf3 {[%emt 0:00:11]} Na5 {[%emt 0:05:54]} 11. Bc2 {[%emt 0:02:55] [#] And now b4 would win.} b4 {[%emt 0:00:02]} 12. d3 {[%emt 0:18:23]} Rb8 {[%emt 0:01:38]} 13. Be3 {[%emt 0:04:52]} bxc3 {[%emt 0:31:46]} 14. bxc3 {[%emt 0:02:57]} Rb2 {[%emt 0:20:54] ...Bxe3 would now be deadly.} 15. Na3 {[%emt 0:21:00]} (15. Bxc5 $11 dxc5 16. Na3) 15... O-O {[%emt 0:02:33]} (15... Bxa3 $15 16. Rxa3 Rxc2) 16. Bxc5 $11 {[%emt 0:04:57]} dxc5 {[%emt 0:00:04]} 17. Rfb1 {[%emt 0:00:14]} Rb6 {[%emt 0:00:21]} 18. Rd1 {[%emt 0:03:15][%cal Od3d4]} Qd6 {[%emt 0:01:01]} 19. Qe3 {[%emt 0:00:31]} Qe7 {[%emt 0:09:02]} 20. d4 {[%emt 0:03:21]} cxd4 {[%emt 0:00:54]} 21. cxd4 {[%emt 0:00:01]} exd4 {[%emt 0:00:56]} 22. Qxd4 {[%emt 0:01:45]} Re8 {[%emt 0:03:30][%cal Oa5b3]} 23. Qc3 {[%emt 0:06:23]} Nc6 {[%emt 0:00:05] [#]} (23... Qe5 $11 24. Qxe5 Rxe5) 24. Nc4 {[%emt 0:03:43]} ({White should try} 24. a5 $1 $16 {[%cal Ra5b6]} Qb4 25. Nb1 Qxc3 26. Nxc3) 24... Qc5 {[%emt 0:00:31]} 25. Rac1 {[%emt 0:07:34]} Rb4 {[%emt 0:01:34]} (25... Rbb8 $11 {might be stronger.}) 26. Bb1 {[%emt 0:02:21]} ({White should play} 26. Bd3 $1 $14) 26... Rxa4 {[%emt 0:07:03]} 27. Ne3 {[%emt 0:01:19]} Qxc3 {[%emt 0:00:15]} 28. Rxc3 {[%emt 0:00:01]} Nd4 {[%emt 0:00:59] Threatens to win with ...Ne2+.} 29. Rxc7 {[%emt 0:00:01]} Nb5 {[%emt 0:00:26] Excellent horsemanship.} 30. Rc6 {[%emt 0:01:21]} Nd4 {[%emt 0:00:02] Prevents Bc2} 31. Rc7 {[%emt 0:00:04]} Nb5 {[%emt 0:01:26]} 32. Rc6 {[%emt 0:00:01]} Nd4 {[%emt 0:00:33] Repels Bc2.   Weighted Error Value: White=0.15 (very precise) /Black=0.16 (very precise) .  Mistake:       	White=3     	Black=3      Inaccurate:     	White=1     	Black=2      OK:         	White=11    	Black=8      Best:        	---       	Black=1} 1/2-1/2

[Event "Karel Janecek Open 2024"]
[Site "Prague"]
[Date "2024.03.01"]
[Round "3.7"]
[White "Bharath Subramaniyam H"]
[Black "Abdilkhair, Abilmansur"]
[Result "1-0"]
[ECO "B12"]
[WhiteElo "2515"]
[BlackElo "2357"]
[Annotator "TA"]
[PlyCount "119"]
[EventDate "2024.02.22"]
[EventType "swiss"]
[EventCountry "CZE"]
[SourceTitle "playchess.com"]
[Source "ChessBase"]
[SourceQuality "1"]
[TimeControl "40/5400+30:1800+30"]

{[%evp 9,119,53,59,41,60,53,56,48,50,58,36,35,105,70,141,141,150,126,189,177,243,136,138,133,154,144,144,148,154,154,215,215,225,222,222,218,226,226,286,271,289,291,284,233,232,229,223,224,227,224,253,210,237,240,242,234,240,233,317,322,316,326,338,338,333,333,333,278,278,281,284,206,205,0,0,0,205,205,205,205,285,198,198,198,345,205,205,205,451,451,451,444,444,436,348,340,29966,29967,29970,29971,29971,29971,29973,29974,29975,29975,29975,29976,29982,29983,29997,655]} 1. e4 {[%emt 0:01:24]} c6 {[%emt 0:00:08]} 2. d4 {[%emt 0:01:32]} d5 {[%emt 0:00:06]} 3. e5 {[%emt 0:00:54]} c5 {[%emt 0:00:42]} 4. dxc5 {[%emt 0:00:21]} Nc6 {[%emt 0:00:04]} 5. f4 {[%emt 0:00:12]} e6 {[%emt 0:04:22]} 6. Be3 {[%emt 0:00:11]} d4 {[%emt 0:00:04]} 7. Bf2 {[%emt 0:00:16]} Bxc5 {[%emt 0:00:05]} 8. Nd2 {[%emt 0:01:03] White is slightly better.} Nge7 {[%emt 0:00:17]} 9. a3 {[%emt 0:08:50]} Nd5 {[%emt 0:01:15]} 10. Qf3 {[%emt 0:08:51]} Ne3 {[%emt 0:36:00]} (10... O-O $14) 11. Bd3 $1 $16 {[%emt 0:01:14]} Qa5 {[%emt 0:00:11] [#]} (11... g5 $1 $14) 12. Rb1 $1 {[%emt 0:12:01]} Bb6 {[%emt 0:14:26]} 13. Ne2 {[%emt 0:12:23]} Bd7 {[%emt 0:13:32]} (13... O-O $16) 14. c3 {[%emt 0:13:20]} Ne7 {[%emt 0:14:32]} (14... Qa4 $142 15. Ne4 Nf5) 15. Nxd4 {[%emt 0:15:47]} ({Only move:} 15. cxd4 $18 N3d5 16. b4) 15... Bxd4 {[%emt 0:01:01]} 16. Bxe3 {[%emt 0:00:45]} Bxe3 {[%emt 0:00:15]} 17. Qxe3 {[%emt 0:00:43]} O-O {[%emt 0:03:23]} 18. O-O {[%emt 0:01:35]} Bc6 {[%emt 0:00:01]} 19. Nc4 $40 {[%emt 0:05:32][%mdl 128] White has strong attack. White is more active.} Qa4 {[%emt 0:01:37]} (19... Qd5 $16 20. Qh3 h6) 20. Nd6 $18 {[%emt 0:04:40]} Rad8 {[%emt 0:00:55]} 21. c4 {[%emt 0:02:28]} Nc8 {[%emt 0:01:48]} 22. Rbd1 {[%emt 0:04:07]} Nxd6 {[%emt 0:00:51]} 23. exd6 {[%emt 0:00:01]} Rxd6 {[#]} 24. Bxh7+ $1 {[%mdl 512]} Kxh7 25. Rxd6 {[%emt 0:00:41]} Qxc4 {[%emt 0:00:01]} 26. Rd4 {[%emt 0:02:28]} Qc2 {[%emt 0:01:15]} 27. Rd2 {[%emt 0:00:39]} Qa4 {[%emt 0:00:41]} 28. Rfd1 {[%emt 0:01:21]} Qa5 {[%emt 0:01:40]} 29. b4 {[%emt 0:00:28]} Qf5 {[%emt 0:01:24]} 30. Qf2 {[%emt 0:00:52]} Bd5 {[%emt 0:00:40]} 31. Rc1 {[%emt 0:00:02]} a6 {[%emt 0:02:24]} 32. h3 {[%emt 0:00:01]} Bc6 {[%emt 0:01:50]} 33. Rc5 {[%emt 0:00:43]} Bd5 {[%emt 0:00:00]} 34. Rdc2 {[%emt 0:00:25]} Qf6 {[%emt 0:01:22] Wards off Qh4+} 35. Rc8 {[%emt 0:01:14]} Rxc8 {[%emt 0:00:05]} 36. Rxc8 {[%emt 0:00:02][%mdl 4096] Endgame. KQR-KQB} Bc6 37. Qc2+ {[%emt 0:00:36]} g6 {[%emt 0:00:08]} 38. Qd2 {[%emt 0:00:34]} e5 {[%emt 0:01:08] [#]} 39. fxe5 {[%emt 0:00:37]} Qxe5 {[%emt 0:00:00]} 40. Qf2 {[%emt 0:00:38]} Qa1+ {[%emt 0:00:32]} 41. Qf1 $2 {[%emt 0:30:53]} (41. Kh2 $18 {Threatening mate with Qh4+.} Qe5+ 42. Qg3) 41... Qd4+ $11 {[%emt 0:30:06]} 42. Qf2 $2 {[%emt 0:00:00]} (42. Kh1 $11 Qd7 43. Rxc6 bxc6 44. Qxa6) 42... Qa1+ $18 {[%emt 0:00:00] White stays focused until the end.} 43. Kh2 {[%emt 0:00:00] White threatens Qh4+ and mate.} Qe5+ {[%emt 0:00:00]} 44. Qg3 {[%emt 0:00:00]} Qd4 {[%emt 0:00:00]} 45. Ra8 {[%emt 0:00:00]} Qf6 {[%emt 0:00:00]} 46. h4 {[%emt 0:00:00]} Qd4 {[%emt 0:00:00]} (46... Kg7 {keeps fighting.} 47. Rb8 Kh6) 47. Rf8 {[%emt 0:00:00]} (47. h5 $142 {Strongly threatening hxg6+.} Kg7 48. hxg6 fxg6 49. Rb8) 47... Kg7 {[%emt 0:00:00]} 48. Rc8 {[%emt 0:00:00]} Kh7 $2 {[%emt 0:00:00] [#]} (48... Qf6 49. Ra8 Kh6 50. Qe3+ Kg7) 49. h5 $1 {[%emt 0:00:00]} gxh5 {[%emt 0:00:00]} 50. Qg8+ {[%emt 0:00:00]} Kh6 {[%emt 0:00:00]} 51. Qxf7 {[%emt 0:00:00] Qe6+ is the strong threat.} Qe5+ {[%emt 0:00:00]} 52. Kg1 {[%emt 0:00:00]} Bxg2 $2 {[%emt 0:00:00]} (52... Qa1+ $18 53. Qf1 Qxf1+ 54. Kxf1 Kg5) 53. Qf8+ {[%emt 0:00:00] White mates.} ({Not} 53. Kxg2 Qe2+ 54. Kg3 (54. Qf2 Qg4+ 55. Kh2 Qxc8 $11) 54... Qg4+ 55. Kh2 Qxc8 $11) 53... Kh7 {[%emt 0:00:00]} 54. Re8 {[%emt 0:00:00]} Qd4+ {[%emt 0:00:00]} 55. Kxg2 {[%emt 0:00:00]} Qg4+ {[%emt 0:00:00]} 56. Kf2 {[%emt 0:00:00]} Qh4+ {[%emt 0:00:00]} 57. Ke3 {[%emt 0:00:00]} Qe1+ {[%emt 0:00:00]} 58. Kd4 {[%emt 0:00:12]} Qd1+ {[%emt 0:00:00]} 59. Ke5 {[%emt 0:00:57]} h4 {[%emt 0:00:00]} 60. Qh8+ {[%emt 0:00:35] Weighted Error Value: White=0.16 (very precise) /Black=0.33.  Missed win:     	White=1     	---        Mistake:       	White=3     	Black=8      Inaccurate:     	White=1     	Black=2      OK:         	White=20    	Black=12     Best:        	White=6     	Black=3      Strong:       	White=2     	---        Brilliant:      	White=2     	---} (60. Re7+ $142 Kg6 61. Qg8+ Kh6 62. Rh7#) 1-0

[Event "Karel Janecek Open 2024"]
[Site "Prague"]
[Date "2024.03.01"]
[Round "3.8"]
[White "Kusa, Jakub"]
[Black "Polak, Tomas"]
[Result "1/2-1/2"]
[ECO "A32"]
[WhiteElo "2350"]
[BlackElo "2525"]
[Annotator "TA"]
[PlyCount "22"]
[EventDate "2024.02.22"]
[EventType "swiss"]
[EventCountry "CZE"]
[SourceTitle "playchess.com"]
[Source "ChessBase"]
[SourceQuality "1"]
[TimeControl "40/5400+30:1800+30"]

{[%evp 12,22,20,18,52,49,52,50,81,70,93,66,70]} 1. d4 {[%emt 0:00:08]} Nf6 {[%emt 0:00:44]} 2. Nf3 {[%emt 0:00:17]} e6 {[%emt 0:00:27]} 3. c4 {[%emt 0:00:18]} c5 {[%emt 0:01:57]} 4. g3 {[%emt 0:01:19]} cxd4 {[%emt 0:01:54]} 5. Nxd4 {[%emt 0:00:23]} a6 {[%emt 0:02:33]} 6. Bg2 {[%emt 0:02:26]} Qc7 {[%emt 0:00:44]} 7. b3 {[%emt 0:04:21]} Be7 {[%emt 0:01:09]} 8. Bb2 {[%emt 0:01:00]} d6 {[%emt 0:01:59]} 9. Nc3 {[%emt 0:01:07]} Nbd7 {[%emt 0:00:41]} 10. Rc1 {[%emt 0:02:11] White is more active.} Ne5 {[%emt 0:03:13]} 11. Qd2 {[%emt 0:03:20]} h5 {[%emt 0:06:39] Black did not feel at home in the position after the opening.   Weighted Error Value: White=0.08 (flawless) /Black=0.23 (precise) .  Inaccurate:     	---       	Black=1      OK:         	White=1     	---} 1/2-1/2

[Event "Karel Janecek Open 2024"]
[Site "Prague"]
[Date "2024.03.01"]
[Round "3.9"]
[White "Popovic, Dusan"]
[Black "Roubalik, Jakub"]
[Result "1-0"]
[ECO "B51"]
[WhiteElo "2504"]
[BlackElo "2351"]
[Annotator "TA"]
[PlyCount "83"]
[EventDate "2024.02.22"]
[EventType "swiss"]
[EventCountry "CZE"]
[SourceTitle "playchess.com"]
[Source "ChessBase"]
[SourceQuality "1"]
[TimeControl "40/5400+30:1800+30"]

{[%evp 9,83,45,33,19,20,7,47,45,54,46,46,50,47,45,72,79,90,78,234,235,231,235,235,240,230,245,229,230,454,446,449,445,577,589,536,527,605,348,435,304,305,170,163,166,158,162,169,169,640,487,579,634,662,656,651,631,904,514,575,499,681,681,681,681,787,677,1950,1571,2455,2323,5836,4754,29988,29989,29988,29988]} 1. e4 {[%emt 0:00:04]} c5 {[%emt 0:00:19]} 2. Nf3 {[%emt 0:00:08]} Nc6 {[%emt 0:00:09]} 3. Bb5 {[%emt 0:00:11]} d6 {[%emt 0:00:16]} 4. O-O {[%emt 0:01:30]} Bg4 {[%emt 0:00:24]} 5. h3 {[%emt 0:01:54]} Bh5 {[%emt 0:00:17]} 6. d4 {[%emt 0:01:42]} cxd4 {[%emt 0:09:24]} 7. c3 {[%emt 0:00:45]} Nf6 {[%emt 0:06:40]} 8. cxd4 {[%emt 0:03:41] White is slightly better.} a6 {[%emt 0:10:05]} 9. Bxc6+ {[%emt 0:02:10]} bxc6 {[%emt 0:00:01]} 10. Nc3 {[%emt 0:02:06]} e6 {[%emt 0:01:07]} 11. Qa4 {[%emt 0:01:06]} Qd7 {[%emt 0:01:43]} 12. Nd2 $1 {[%emt 0:01:15]} Bg6 {[%emt 0:05:07][%cal Bh5g6,Bg6h7,Bh7f5,Bf5e6][%mdl 32]} 13. f4 {[%emt 0:11:25][%cal Of4f5]} h5 $2 {[%emt 0:13:50] [#] Black cannot hold the game after this.} (13... Rb8 $16 {keeps fighting.}) 14. f5 $1 $18 {[%emt 0:04:54][%mdl 512]} exf5 {[%emt 0:00:28]} 15. exf5 {[%emt 0:01:29]} Bh7 {[%emt 0:00:05][%cal Of8e7] [#]} (15... Bxf5 16. Rxf5 Be7 17. Rf1 $18) 16. Nc4 $1 {[%emt 0:12:13]} Rb8 {[%emt 0:00:13]} 17. Bg5 {[%emt 0:11:03]} (17. Qxa6 $6 Be7 $16) 17... Be7 {[%emt 0:01:39]} 18. Bxf6 {[%emt 0:02:00]} (18. Qxa6 O-O $16) 18... Bxf6 {[%emt 0:00:33]} (18... gxf6 19. d5 (19. Qxa6 d5 $18) 19... cxd5 20. Qxd7+ Kxd7 21. Nxd5 Bd8) 19. Rae1+ {[%emt 0:07:26]} (19. Qxa6 Bxd4+ 20. Kh1 O-O $17 (20... Bxf5 $2 21. Rxf5 O-O 22. Rf4 $18)) 19... Kf8 {[%emt 0:02:04]} 20. d5 {[%emt 0:02:46][%cal Bd4d5,Bd5c6][%mdl 32]} (20. Qxa6 Bxd4+ (20... Bxf5 21. d5 $16) 21. Kh1 Bxf5 $14) 20... Bxf5 {[%emt 0:04:00]} 21. dxc6 {[%emt 0:03:08]} Qa7+ {[%emt 0:00:06]} 22. Kh1 {[%emt 0:00:34] Active counter play!} Be6 {[%emt 0:23:37]} 23. Ne4 {[%emt 0:01:55]} Be7 {[%emt 0:07:05]} 24. Nexd6 {[%emt 0:10:47] A dynamic duo of knights.} Rh6 {[%emt 0:00:56]} 25. Qa5 {[%emt 0:12:14]} (25. Nxf7 $142 Bxf7 26. Ne5) 25... Bxc4 {[%emt 0:05:46]} 26. Nxc4 {[%emt 0:00:30]} Bb4 {[%emt 0:00:43]} 27. Qd5 {[%emt 0:01:26][%cal Oc4e5] aiming for Ne5!} Bxe1 {[%emt 0:00:13] [#]} 28. Ne5 $1 $40 {[%emt 0:00:58][%mdl 128] White attacks with force.} Rf6 {[%emt 0:02:44]} (28... Bf2 29. Rc1 (29. Nd7+ Kg8 $11) 29... Qe7 (29... Rxb2 30. Qd8#) 30. Nd7+ Kg8 31. Nxb8 Re6) 29. Rxe1 {[%emt 0:02:18] Strongly threatening Nd7+.} Kg8 {[%emt 0:02:58][%cal Ob8e8] Threatens to win with ...Re8!} 30. Nd7 {[%emt 0:00:13]} Qf2 {[%emt 0:01:20]} 31. Nxf6+ {[%emt 0:00:09]} gxf6 {[%emt 0:01:09][%mdl 4096] Endgame. KQR-KQR} 32. Rg1 {[%emt 0:01:29]} ({Weaker is} 32. Re7 Qf1+ 33. Kh2 Qf4+ 34. Kg1 Qc1+ 35. Kh2 Qf4+ 36. Kh1 (36. Kg1 Qc1+ 37. Kh2 Qf4+ $11) 36... Qc1+ 37. Kh2 Qf4+ $11) 32... Qf4 {[%emt 0:00:53]} 33. Qc5 {[%emt 0:00:33]} Rb5 {[%emt 0:00:26]} 34. Qc2 {[%emt 0:00:21] Black must now prevent c7.} Rb8 {[%emt 0:00:31]} 35. c7 {[%emt 0:00:40]} Rc8 {[%emt 0:00:01]} 36. Rc1 {[%emt 0:00:06]} Kg7 {[%emt 0:00:12]} 37. Qc3 {[%emt 0:00:44] Prevents a5.} h4 {[%emt 0:01:20]} 38. b4 {[%emt 0:00:10][%cal Bb2b4,Bb4b5,Bb5b6][%mdl 32]} Kg6 {[%emt 0:00:34]} 39. a4 {[%emt 0:00:10] And now b5 would win.} Kg7 {[%emt 0:00:14]} 40. b5 {[%emt 0:00:31] b6 would kill now.} Qxa4 {[%emt 0:00:23]} 41. b6 {[%emt 0:30:04]} Qe4 {[%emt 0:30:17]} 42. Qc6 {[%emt 0:00:10] Weighted Error Value: White=0.34/Black=0.78.  Mistake:       	White=1     	Black=3      Inaccurate:     	White=1     	Black=3      OK:         	White=7     	Black=8      Best:        	White=6     	Black=5      Strong:       	White=3     	---        Brilliant:      	White=1     	---} 1-0

[Event "Karel Janecek Open 2024"]
[Site "Prague"]
[Date "2024.03.01"]
[Round "3.10"]
[White "Jares, Michal"]
[Black "Maksimovic, Bojan"]
[Result "1/2-1/2"]
[ECO "D73"]
[WhiteElo "2314"]
[BlackElo "2497"]
[Annotator "TA"]
[PlyCount "58"]
[EventDate "2024.02.22"]
[EventType "swiss"]
[EventCountry "CZE"]
[SourceTitle "playchess.com"]
[Source "ChessBase"]
[SourceQuality "1"]
[TimeControl "40/5400+30:1800+30"]

{[%evp 10,58,42,0,0,0,0,0,0,0,-2,5,18,-25,0,0,0,0,0,0,0,0,10,0,11,-22,-10,-10,15,11,8,27,16,0,0,0,0,0,0,0,0,0,0,0,0,0,0,0,0,0,0]} 1. Nf3 {[%emt 0:00:03]} d5 {[%emt 0:00:36][%cal Bd7d5,Bd5c4][%mdl 32]} 2. g3 {[%emt 0:00:08]} Nf6 {[%emt 0:00:10]} 3. Bg2 {[%emt 0:00:03]} g6 {[%emt 0:00:27]} 4. d4 {[%emt 0:00:38]} Bg7 {[%emt 0:00:07]} 5. c4 {[%emt 0:00:28]} dxc4 {[%emt 0:01:25]} 6. Qa4+ {[%emt 0:00:54]} Nc6 {[%emt 0:01:23]} 7. Ne5 {[%emt 0:07:50]} O-O {[%emt 0:01:17]} 8. Nxc6 {[%emt 0:00:13]} bxc6 {[%emt 0:00:07]} 9. Qxc6 {[%emt 0:01:00]} Rb8 {[%emt 0:00:23]} 10. Qxc4 {[%emt 0:00:48]} Be6 {[%emt 0:07:19]} 11. Qd3 {[%emt 0:07:12]} Rb4 {[%emt 0:03:22]} 12. O-O {[%emt 0:00:27]} Rxd4 {[%emt 0:02:15]} 13. Qa3 {[%emt 0:00:02][%cal Ob1c3]} Bd5 {[%emt 0:05:22]} 14. Nc3 {[%emt 0:01:52] [#] aiming for Nxd5.} Bxg2 {[%emt 0:00:26]} 15. Kxg2 {[%emt 0:00:03]} Qa8+ {[%emt 0:09:37]} 16. Kg1 {[%emt 0:01:49][%cal Oc1e3]} Ne4 {[%emt 0:09:52]} 17. Nxe4 {[%emt 0:03:59]} Qxe4 {[%emt 0:00:13]} 18. Qxa7 {[%emt 0:10:44]} Ra8 {[%emt 0:09:04]} 19. Qxc7 {[%emt 0:00:56]} Rc4 {[%emt 0:01:53]} 20. Qd7 {[%emt 0:06:43]} Qxe2 {[%emt 0:00:50]} 21. Be3 {[%emt 0:03:24][%cal Oa1b1] The position is equal.} Qxb2 {[%emt 0:02:00]} 22. Rac1 {[%emt 0:07:09]} Qxa2 {[%emt 0:01:05]} 23. Qxe7 {[%emt 0:01:57]} Rxc1 {[%emt 0:00:19]} 24. Rxc1 {[%emt 0:00:04]} Qd5 {[%emt 0:00:40]} 25. Qc5 {[%emt 0:02:45]} Qxc5 {[%emt 0:00:15]} 26. Rxc5 {[%emt 0:00:13]} h5 {[%emt 0:00:17]} 27. Kg2 {[%emt 0:00:22]} Rd8 {[%emt 0:00:17]} 28. Rc7 {[%emt 0:00:44]} Bd4 {[%emt 0:00:55]} 29. Bxd4 {[%emt 0:00:04]} Rxd4 {[%emt 0:00:04] An uneventful encounter.   Weighted Error Value: White=0.07 (flawless) /Black=0.04 (flawless) .  Inaccurate:     	White=2     	---        OK:         	White=10    	Black=11     Best:        	White=1     	Black=1} 1/2-1/2

[Event "Karel Janecek Open 2024"]
[Site "Prague"]
[Date "2024.03.01"]
[Round "3.11"]
[White "Quintiliano, Renato R."]
[Black "Chinguun, Sumiya"]
[Result "1-0"]
[ECO "E43"]
[WhiteElo "2493"]
[BlackElo "2319"]
[Annotator "TA"]
[PlyCount "87"]
[EventDate "2024.02.22"]
[EventType "swiss"]
[EventCountry "CZE"]
[SourceTitle "playchess.com"]
[Source "ChessBase"]
[SourceQuality "1"]
[TimeControl "40/5400+30:1800+30"]

{[%evp 9,87,-2,24,32,47,47,72,70,76,60,68,47,57,25,21,38,66,60,59,66,67,55,78,81,89,66,87,45,49,23,39,0,0,-8,15,-16,31,-7,-27,-59,-58,-56,-53,-130,-87,-213,-54,-214,-214,-231,-225,-209,-224,-241,-226,-185,-185,-187,-170,-176,-137,-241,-219,-211,0,0,13,24,87,0,569,554,587,580,574,589,1372,889,889,889]} 1. d4 {[%emt 0:01:38]} Nf6 {[%emt 0:00:07]} 2. c4 {[%emt 0:00:07]} e6 {[%emt 0:00:05]} 3. Nc3 {[%emt 0:00:20]} Bb4 {[%emt 0:00:09]} 4. e3 {[%emt 0:00:09]} b6 {[%emt 0:01:43]} 5. Bd2 {[%emt 0:01:32]} c5 {[%emt 0:05:51]} 6. a3 {[%emt 0:05:49]} Ba5 {[%emt 0:01:02] [#]} 7. b4 $1 {[%emt 0:12:08]} cxb4 {[%emt 0:01:35]} 8. Nb5 {[%emt 0:00:07] White is better.} Nc6 {[%emt 0:03:16] [#]} 9. d5 $1 {[%emt 0:05:21][%cal Bd4d5,Bd5c6][%mdl 32] White is more active.} Ne4 {[%emt 0:27:38] Wards off Nd6+. ...Nxd2 is the strong threat.} 10. dxc6 {[%emt 0:19:17]} Nxd2 {[%emt 0:00:15]} 11. Qxd2 {[%emt 0:00:59]} bxa3 {[%emt 0:20:51]} 12. Nc3 {[%emt 0:00:10]} Qe7 {[%emt 0:00:35]} 13. Bd3 {[%emt 0:08:01]} O-O {[%emt 0:02:07]} 14. Nge2 {[%emt 0:05:54]} dxc6 {[%emt 0:00:40][%cal Ob6b5]} 15. O-O {[%emt 0:00:08]} e5 {[%emt 0:02:12]} 16. Qc2 {[%emt 0:03:57]} f5 {[%emt 0:00:58]} 17. Qb3 {[%emt 0:00:22]} Be6 {[%emt 0:02:08]} 18. Nb1 {[%emt 0:04:28]} (18. Qxa3 $6 Qxa3 19. Rxa3 Rfd8 $11) 18... Bb4 {[%emt 0:04:31]} (18... e4 19. Bc2 $16 (19. Qxa3 $2 Bb4 $19)) 19. Nxa3 {[%emt 0:00:38]} a5 {[%emt 0:01:31][%cal Ob6b5]} 20. Nc3 {[%emt 0:08:34]} (20. Ng3 $14) 20... b5 $11 {[%emt 0:07:44]} 21. Nab1 {[%emt 0:04:54]} Qc5 {[%emt 0:06:41]} (21... e4 $5 22. Be2 $8 Qf6 $11) 22. Qb2 {[%emt 0:01:33]} Bxc4 {[%emt 0:01:35]} ({Much worse is} 22... bxc4 $6 23. Be2 $16) (22... Rad8 $11 23. Be2 Bxc4 (23... bxc4 24. Na4 $16)) 23. Bxc4+ {[%emt 0:00:07]} (23. Na4 {is more complex.} bxa4 24. Rc1 Bxd3 25. Rxc5 Bxc5 26. Qc3) 23... Qxc4 {[%emt 0:00:08]} 24. Na2 {[%emt 0:00:41][%cal Of1c1] White is weak on the dark squares} Be7 {[%emt 0:00:23][%mdl 1024] Black has compensation.} 25. Nd2 {[%emt 0:01:32]} Qe6 {[%emt 0:00:37]} 26. Rac1 {[%emt 0:00:30]} (26. e4 $15) 26... a4 {[%emt 0:02:05]} 27. Nf3 {[%emt 0:04:01]} (27. e4 $17) 27... Rfe8 $2 {[%emt 0:05:27]} (27... c5 $1 $19 {Threatens to win with ...e4.} 28. Qxe5 Qxe5 29. Nxe5 b4) 28. Nxe5 $2 {[%emt 0:02:19]} ({White should try} 28. Ra1 $15) 28... a3 $1 $19 {[%emt 0:00:45]} 29. Qa1 {[%emt 0:00:26]} c5 {[%emt 0:00:16]} 30. Nd3 {[%emt 0:00:46]} Rec8 {[%emt 0:00:51]} 31. Nf4 {[%emt 0:00:53]} Qf7 {[%emt 0:00:14]} 32. Rcd1 {[%emt 0:03:55]} Bf6 {[%emt 0:00:40]} 33. Qb1 {[%emt 0:00:43][%cal Of4d5]} b4 {[%emt 0:00:39] aiming for ...b3.} 34. Nd5 {[%emt 0:01:07][%cal Oa2c1]} Bb2 {[%emt 0:01:06] White must now prevent ...b3.} 35. Qc2 {[%emt 0:02:37]} (35. Nb6 $17 b3 36. Nxc8 Rxc8 37. Nc1) 35... Rab8 $1 {[%emt 0:00:12]} 36. Qc4 {[%emt 0:00:11] [#]} Kf8 {[%emt 0:01:14] Dodges Ne7} ({Better is} 36... b3 $1 $19 {[%cal Rb3a2]} 37. Nc1 (37. Ne7+ $2 Kf8 $19) 37... Bxc1 38. Qxc1 b2) 37. Rd3 {[%emt 0:00:26]} Qe6 {[%emt 0:00:10]} (37... Kg8 38. Ne7+ Kf8 39. Qxf7+ Kxf7 40. Nxc8 Rxc8 41. Rb3 $14) (37... Qe8 $5) 38. f3 {[%emt 0:00:39][%cal Bf2f3,Bf3e4][%mdl 32] Prevents Qe4} Rc6 {[%emt 0:00:56]} (38... Be5 $11) 39. e4 {[%emt 0:00:56]} (39. Nc1 $16) 39... fxe4 $2 {[%emt 0:00:17][%mdl 8192]} (39... Qc8 $11 {and Black has nothing to worry.} 40. Rfd1 Qa6) 40. fxe4+ $18 {[%emt 0:00:13] White is clearly winning.} Kg8 {[%emt 0:00:06] [#]} 41. Naxb4 $1 {[%emt 0:31:59][%mdl 512]} Rd6 {[%emt 0:05:21]} 42. Qxc5 {[%emt 0:00:00]} Qe5 {[%emt 0:03:51]} 43. Nc6 {[%emt 0:00:00]} Rxc6 {[%emt 0:00:20]} 44. Ne7+ {[%emt 0:01:47] Weighted Error Value: White=0.25 (precise) /Black=0.33.  Loses game:     	---       	Black=1      Missed win:     	---       	Black=1      Mistake:       	White=6     	Black=3      Inaccurate:     	White=7     	Black=3      OK:         	White=17    	Black=18     Best:        	White=1     	Black=3      Strong:       	---       	Black=2      Brilliant:      	White=1     	---} 1-0